bitfinex/quotes_SOLUSD_20250621
["timestamp","ask_amount","ask_price","bid_price","bid_amount"]
[1750542417798,25.81253891,133.79,133.73,25.81253891]
[1750542417958,0.72,133.81,133.73,25.81253891]
[1750542418164,25.81253891,133.78,133.73,25.81253891]
[1750542418391,25.81253891,133.79,133.73,33.28980851]
[1750542418902,25.81253891,133.78,133.72,37.82023891]
[1750542419065,25.81253891,133.78,133.72,12.0077]
[1750542419266,25.81253891,133.77,133.72,12.0077]
[1750542419467,26.0,133.8,133.69,26.0]
[1750542419468,25.81253891,133.75,133.69,26.0]
[1750542419686,25.81253891,133.75,133.69,25.81253891]
[1750542419882,25.81253891,133.74,133.68,38.82773891]
[1750542420190,25.81253891,133.73,133.67,25.81253891]
[1750542420393,0.72,133.76,133.67,25.81253891]
[1750542420394,7.47757938,133.74,133.67,25.81253891]
[1750542420610,25.81253891,133.72,133.66,25.81253891]
[1750542420770,8.19757938,133.74,133.66,25.81253891]
[1750542420771,18.64964886,133.73,133.66,25.81253891]
[1750542420965,25.81253891,133.72,133.65,13.0152]
[1750542421166,18.64964886,133.73,133.66,25.81253891]
[1750542421400,18.64964886,133.73,133.67,25.81253891]
[1750542421401,0.72,133.71,133.67,25.81253891]
[1750542421577,0.72,133.72,133.65,13.0152]
[1750542421902,0.72,133.7,133.64,25.81253891]
[1750542422105,0.72,133.7,133.63,3.2819]
[1750542422106,25.81253891,133.69,133.62,7.48389628]
[1750542422405,0.72,133.7,133.62,7.48389628]
[1750542422406,33.29348974,133.68,133.62,25.81253891]
[1750542423802,33.29348974,133.68,133.61,13.7652]
[1750542423974,7.48095083,133.68,133.63,25.81253891]
[1750542424175,8.2001597,133.69,133.66,25.81253891]
[1750542424376,8.2001597,133.69,133.62,7.48363307]
[1750542424607,25.81253891,133.67,133.61,20.49966082]
[1750542424795,26.90013726,133.69,133.61,38.82773891]
[1750542425120,25.81253891,133.66,133.61,13.0152]
[1750542425299,26.53253891,133.66,133.61,25.81253891]
[1750542425474,25.81253891,133.65,133.6,70.29253891]
[1750542425777,25.81253891,133.64,133.6,44.48]
[1750542425984,25.81253891,133.62,133.57,38.03383891]
[1750542426186,18.64964886,133.64,133.57,38.03383891]
[1750542426379,25.81253891,133.62,133.57,38.03383891]
[1750542427301,26.53253891,133.62,133.57,12.2213]
[1750542427604,25.81253891,133.61,133.55,25.81253891]
[1750542427793,25.81253891,133.6,133.53,12.2213]
[1750542428104,25.81253891,133.57,133.52,25.81253891]
[1750542428392,25.81253891,133.57,133.48,56.6813]
[1750542428393,26.53253891,133.57,133.51,51.81253891]
[1750542428694,26.53253891,133.57,133.48,56.6813]
[1750542428695,7.48727163,133.56,133.49,7.49067265]
[1750542428898,33.29981054,133.56,133.49,7.49067265]
[1750542429200,25.81253891,133.55,133.5,25.81253891]
[1750542429496,8.20727163,133.56,133.51,25.81253891]
[1750542429896,26.72,133.6,133.53,25.81253891]
[1750542430091,26.53253891,133.59,133.54,25.81253891]
[1750542430396,26.53253891,133.59,133.5,7.4906367]
[1750542430598,7.48390959,133.62,133.52,0.75]
[1750542430896,7.48390959,133.62,133.55,25.81253891]
[1750542431100,25.81253891,133.6,133.55,25.81253891]
[1750542431398,25.81253891,133.6,133.52,0.75]
[1750542431399,33.48390959,133.62,133.52,0.75]
[1750542431587,7.48502994,133.6,133.53,7.48895379]
[1750542431975,33.29756885,133.6,133.54,25.81253891]
[1750542432176,33.29756885,133.6,133.55,0.165]
[1750542432382,25.81253891,133.59,133.55,0.165]
[1750542432797,7.4857306,133.59,133.55,0.165]
[1750542433001,33.29826951,133.59,133.55,0.165]
[1750542433505,8.1957306,133.59,133.55,0.165]
[1750542433679,34.00826951,133.59,133.55,0.165]
[1750542434106,25.81253891,133.58,133.55,0.165]
[1750542434284,8.1957306,133.59,133.55,0.165]
[1750542434494,34.00826951,133.59,133.55,0.165]
[1750542434686,8.1957306,133.59,133.55,0.165]
[1750542434892,25.81253891,133.58,133.55,0.165]
[1750542435191,34.00826951,133.59,133.55,0.165]
[1750542435805,25.81253891,133.58,133.55,0.165]
[1750542436102,33.29924999,133.57,133.55,0.165]
[1750542436276,26.52253891,133.56,133.55,0.165]
[1750542437691,16.52253891,133.56,133.55,0.165]
[1750542438008,24.00981054,133.56,133.55,0.165]
[1750542438693,33.29981054,133.56,133.55,0.165]
[1750542439781,34.00981054,133.56,133.55,0.165]
[1750542440486,8.19727163,133.56,133.55,0.165]
[1750542440697,52.6594594,133.56,133.55,0.165]
[1750542442803,51.9494594,133.56,133.55,0.165]
[1750542443105,78.6594594,133.56,133.55,0.165]
[1750542443319,52.6594594,133.56,133.55,0.165]
[1750542444091,26.0,133.52,133.44,38.39803891]
[1750542444295,26.0,133.52,133.45,25.81253891]
[1750542444493,25.81253891,133.5,133.45,26.56253891]
[1750542445006,25.81253891,133.48,133.44,12.5855]
[1750542445310,25.81253891,133.49,133.44,12.5855]
[1750542445491,25.81253891,133.48,133.44,12.5855]
[1750542446088,25.81253891,133.48,133.42,10.70051768]
[1750542446304,25.81253891,133.47,133.41,46.6435342]
[1750542446509,25.81253891,133.45,133.41,13.3355]
[1750542446714,25.81253891,133.45,133.41,12.5855]
[1750542447109,26.22115672,133.48,133.39,33.30924549]
[1750542447412,25.81253891,133.44,133.39,8.24670658]
[1750542448615,25.81253891,133.44,133.37,31.3290345]
[1750542448616,51.81253891,133.4,133.33,7.5001875]
[1750542448791,51.81253891,133.4,133.33,8.2501875]
[1750542448792,25.81253891,133.38,133.33,8.2501875]
[1750542449407,25.81253891,133.38,133.33,0.75]
[1750542450121,25.81253891,133.38,133.32,45.898595]
[1750542450122,7.49681385,133.39,133.32,20.08605609]
[1750542450303,7.49681385,133.39,133.32,45.898595]
[1750542450614,25.81253891,133.37,133.32,46.648595]
[1750542451303,26.0,133.4,133.32,45.898595]
[1750542451511,51.81253891,133.39,133.33,25.81253891]
[1750542452716,51.81253891,133.39,133.34,8.24962501]
[1750542454897,25.81253891,133.39,133.34,8.24962501]
[1750542455702,25.81253891,133.38,133.34,26.99868755]
[1750542456193,25.81253891,133.39,133.34,26.99868755]
[1750542456809,26.0,133.41,133.34,26.99868755]
[1750542457008,25.81253891,133.39,133.34,26.99868755]
[1750542457813,25.81253891,133.38,133.34,26.99868755]
[1750542458318,25.81253891,133.39,133.34,26.99868755]
[1750542458620,25.81253891,133.38,133.34,8.24962501]
[1750542459719,26.0,133.41,133.34,8.24962501]
[1750542460022,25.81253891,133.38,133.34,8.24962501]
[1750542460613,25.81253891,133.37,133.33,7.5001875]
[1750542460816,25.81253891,133.36,133.33,7.5001875]
[1750542461331,25.81253891,133.37,133.33,7.5001875]
[1750542461624,25.81253891,133.36,133.33,7.5001875]
[1750542462527,19.32964886,133.39,133.32,20.08613202]
[1750542462703,25.81253891,133.36,133.32,20.08613202]
[1750542463915,26.82691095,133.39,133.3,18.75343247]
[1750542463916,26.14691095,133.39,133.3,18.75343247]
[1750542464108,25.81253891,133.35,133.3,45.30597138]
[1750542465326,25.81253891,133.35,133.3,52.80784684]
[1750542465712,7.4975899,133.38,133.3,52.80784684]
[1750542465913,25.81253891,133.36,133.3,52.80784684]
[1750542467040,25.81253891,133.35,133.3,52.80784684]
[1750542467743,25.81253891,133.34,133.3,7.50187546]
[1750542468325,25.81253891,133.35,133.3,7.50187546]
[1750542468536,25.81253891,133.34,133.3,7.50187546]
[1750542469540,51.81253891,133.35,133.3,7.50187546]
[1750542469849,51.81253891,133.35,133.3,8.24187546]
[1750542470144,25.81253891,133.36,133.3,26.25656413]
[1750542470321,25.81253891,133.36,133.32,0.74]
[1750542470521,25.81253891,133.38,133.32,25.81253891]
[1750542470723,25.81253891,133.38,133.34,7.49962501]
[1750542471027,25.81253891,133.38,133.34,8.23962501]
[1750542471222,25.81253891,133.4,133.34,52.06122646]
[1750542471427,25.81253891,133.41,133.36,0.74]
[1750542472252,25.81253891,133.4,133.36,0.74]
[1750542472748,25.81253891,133.4,133.37,7.49793806]
[1750542473426,25.81253891,133.41,133.37,7.49793806]
[1750542473627,8.17478085,133.43,133.37,7.49793806]
[1750542473929,25.81253891,133.39,133.33,65.11513891]
[1750542474130,0.68,133.41,133.33,46.61517941]
[1750542474349,25.81253891,133.38,133.33,21.5426405]
[1750542474651,25.81253891,133.38,133.33,14.0426]
[1750542474822,33.30995983,133.38,133.33,14.0426]
[1750542475018,25.81253891,133.37,133.33,14.0426]
[1750542475740,7.49699512,133.39,133.33,13.3026]
[1750542475741,25.81253891,133.36,133.33,13.3026]
[1750542476243,25.81253891,133.36,133.32,7.5006029]
[1750542476824,25.81253891,133.36,133.3,38.92623891]
[1750542476825,25.81253891,133.36,133.31,7.50131272]
[1750542477234,25.81253891,133.35,133.31,7.50131272]
[1750542478849,18.64964886,133.38,133.31,34.05385163]
[1750542479052,18.64964886,133.39,133.31,34.05385163]
[1750542479386,25.81253891,133.36,133.31,33.31385163]
[1750542479558,25.81253891,133.37,133.32,0.74]
[1750542480065,25.81253891,133.36,133.33,7.5001875]
[1750542480230,25.81253891,133.37,133.33,7.5001875]
[1750542480863,8.17646452,133.4,133.33,7.5001875]
[1750542481053,25.81253891,133.36,133.33,7.5001875]
[1750542481234,18.64964886,133.39,133.33,7.5001875]
[1750542481434,25.81253891,133.36,133.33,7.5001875]
[1750542481860,18.64964886,133.39,133.33,7.5001875]
[1750542482157,25.81253891,133.36,133.32,7.50075007]
[1750542482355,26.82696006,133.39,133.32,7.50075007]
[1750542482558,25.81253891,133.36,133.32,7.50075007]
[1750542482746,25.81253891,133.37,133.32,7.50075007]
[1750542483145,25.81253891,133.37,133.32,25.81253891]
[1750542483346,19.32964886,133.42,133.34,0.74]
[1750542483661,25.81253891,133.39,133.34,25.81253891]
[1750542483849,25.81253891,133.39,133.35,0.74]
[1750542484371,25.81253891,133.4,133.35,0.74]
[1750542484553,26.0,133.41,133.35,0.74]
[1750542484862,25.81253891,133.4,133.35,8.23906261]
[1750542485048,26.0,133.41,133.36,0.74]
[1750542485236,25.81253891,133.4,133.36,0.74]
[1750542485437,26.0,133.41,133.36,0.74]
[1750542485765,25.81253891,133.41,133.36,0.74]
[1750542486448,25.81253891,133.4,133.35,33.31160152]
[1750542486662,25.81253891,133.39,133.38,7.49737591]
[1750542486839,25.81253891,133.4,133.38,7.49737591]
[1750542487035,26.0,133.42,133.38,7.49737591]
[1750542487381,26.49253891,133.41,133.38,7.49737591]
[1750542487953,25.81253891,133.41,133.38,7.49737591]
[1750542488478,33.49513366,133.42,133.36,19.8717855]
[1750542488645,0.68,133.4,133.34,7.49962501]
[1750542488840,25.81253891,133.39,133.34,7.49962501]
[1750542489643,25.81253891,133.39,133.34,8.23962501]
[1750542490463,26.68,133.42,133.35,25.81253891]
[1750542490767,25.81253891,133.41,133.36,7.49850029]
[1750542491975,25.81253891,133.38,133.36,7.49850029]
[1750542492156,25.81253891,133.37,133.34,7.49962501]
[1750542493162,26.54253891,133.37,133.32,19.87431426]
[1750542493342,25.81253891,133.36,133.32,19.87431426]
[1750542493542,0.73,133.37,133.32,12.3737]
[1750542493863,25.81253891,133.35,133.32,12.3737]
[1750542494043,25.81253891,133.35,133.31,7.50112576]
[1750542494569,25.81253891,133.35,133.3,7.50187546]
[1750542495672,25.81253891,133.34,133.3,7.50187546]
[1750542496639,25.81253891,133.35,133.3,7.50187546]
[1750542496839,26.54253891,133.35,133.3,7.50187546]
[1750542497466,25.81253891,133.35,133.3,7.50187546]
[1750542497669,8.22744681,133.38,133.3,8.21187546]
[1750542497849,8.22744681,133.38,133.3,7.50187546]
[1750542497850,25.81253891,133.35,133.3,7.50187546]
[1750542498050,26.54253891,133.34,133.3,7.50187546]
[1750542498771,25.81253891,133.34,133.3,7.50187546]
[1750542499276,0.73,133.37,133.3,7.50187546]
[1750542499460,25.81253891,133.35,133.3,26.96656413]
[1750542499646,26.54253891,133.37,133.31,26.52253891]
[1750542499842,26.0,133.39,133.32,25.81253891]
[1750542499843,25.81253891,133.38,133.32,25.81253891]
[1750542500046,26.0,133.39,133.32,25.81253891]
[1750542500248,25.81253891,133.38,133.32,25.81253891]
[1750542500691,26.0,133.39,133.33,7.5001875]
[1750542500848,25.81253891,133.38,133.33,7.5001875]
[1750542501049,25.81253891,133.38,133.33,8.2101875]
[1750542501549,0.73,133.41,133.34,26.52253891]
[1750542501751,0.73,133.44,133.35,25.81253891]
[1750542502077,25.81253891,133.42,133.37,38.81133891]
[1750542502253,25.81253891,133.42,133.37,39.52133891]
[1750542502646,0.73,133.44,133.37,39.52133891]
[1750542502647,25.81253891,133.44,133.39,0.71]
[1750542502851,8.22184777,133.48,133.39,26.52253891]
[1750542503278,25.81253891,133.45,133.39,26.52253891]
[1750542503450,8.22184777,133.48,133.39,26.52253891]
[1750542503964,26.0,133.45,133.4,7.49625187]
[1750542504295,0.73,133.48,133.4,52.75942046]
[1750542504446,0.73,133.48,133.4,52.04942046]
[1750542504650,26.0,133.46,133.4,52.04942046]
[1750542504846,0.73,133.48,133.4,26.94688155]
[1750542505045,25.81253891,133.45,133.4,26.94688155]
[1750542505773,25.81253891,133.44,133.4,7.49625187]
[1750542505953,26.0,133.45,133.39,7.49681385]
[1750542506347,26.0,133.47,133.39,7.49681385]
[1750542506547,26.73,133.48,133.41,25.81253891]
[1750542506770,25.81253891,133.47,133.41,25.81253891]
[1750542506955,25.81253891,133.47,133.4,0.71]
[1750542507261,25.81253891,133.46,133.4,26.52253891]
[1750542507452,25.81253891,133.44,133.4,0.71]
[1750542507658,25.81253891,133.43,133.39,7.49681385]
[1750542507948,25.81253891,133.43,133.37,13.7088]
[1750542507949,19.37964886,133.44,133.37,20.49671944]
[1750542508152,18.64964886,133.42,133.37,12.9988]
[1750542508377,18.64964886,133.42,133.35,7.49860548]
[1750542508585,25.81253891,133.4,133.35,7.49860548]
[1750542509279,25.81253891,133.39,133.35,7.49860548]
[1750542509574,25.81253891,133.4,133.35,7.49860548]
[1750542509747,25.81253891,133.39,133.35,7.49860548]
[1750542510769,18.64964886,133.41,133.35,7.49860548]
[1750542511152,26.0,133.42,133.35,26.24626202]
[1750542511345,25.81253891,133.41,133.35,52.05880093]
[1750542511549,25.81253891,133.41,133.35,26.95626202]
[1750542511765,25.81253891,133.41,133.36,25.81253891]
[1750542511964,26.0,133.42,133.36,26.52253891]
[1750542512167,51.81253891,133.42,133.36,0.71]
[1750542512357,51.81253891,133.42,133.35,26.24626202]
[1750542512358,26.0,133.42,133.37,25.81253891]
[1750542512554,0.73,133.48,133.38,25.81253891]
[1750542512877,0.73,133.48,133.39,25.81253891]
[1750542512878,18.64964886,133.47,133.39,25.81253891]
[1750542513268,25.81253891,133.45,133.39,25.81253891]
[1750542513578,25.81253891,133.45,133.4,7.49625187]
[1750542513972,26.0,133.46,133.4,7.49625187]
[1750542514385,25.81253891,133.45,133.4,7.49625187]
[1750542514558,18.64964886,133.47,133.38,26.23997451]
[1750542514762,18.64964886,133.47,133.4,25.81253891]
[1750542514961,25.81253891,133.45,133.39,25.81253891]
[1750542515160,18.64964886,133.47,133.39,25.81253891]
[1750542515373,18.64964886,133.47,133.4,25.81253891]
[1750542515568,34.22183128,133.48,133.38,26.23997451]
[1750542515569,26.73,133.48,133.38,26.23997451]
[1750542515776,25.81253891,133.46,133.39,0.71]
[1750542515976,25.81253891,133.45,133.39,0.71]
[1750542516281,25.81253891,133.44,133.38,26.94997451]
[1750542516460,25.81253891,133.44,133.38,52.76251342]
[1750542516989,25.81253891,133.43,133.38,26.94997451]
[1750542517879,18.64964886,133.45,133.38,26.94997451]
[1750542518075,25.81253891,133.43,133.38,26.94997451]
[1750542519083,18.64964886,133.45,133.38,26.94997451]
[1750542519382,25.81253891,133.43,133.38,26.94997451]
[1750542519785,25.81253891,133.43,133.38,18.7425986]
[1750542520781,45.37964886,133.45,133.38,18.7425986]
[1750542521171,15.46584763,133.43,133.38,19.4525986]
[1750542521356,15.46584763,133.43,133.38,18.7425986]
[1750542521557,16.19584763,133.42,133.38,18.7425986]
[1750542521778,16.19584763,133.42,133.37,7.49793806]
[1750542522165,26.0,133.45,133.37,23.66378569]
[1750542522485,15.46584763,133.42,133.37,23.66378569]
[1750542522664,26.0,133.45,133.37,23.66378569]
[1750542522863,15.46584763,133.43,133.38,15.46584763]
[1750542523082,15.46584763,133.44,133.38,15.46584763]
[1750542523255,11.26468158,133.5,133.42,15.46584763]
[1750542523463,15.46584763,133.48,133.42,15.46584763]
[1750542523959,15.46584763,133.47,133.43,7.49456643]
[1750542524159,15.46584763,133.46,133.43,7.49456643]
[1750542524564,0.73,133.48,133.43,7.49456643]
[1750542524565,15.46584763,133.45,133.43,7.49456643]
[1750542524873,25.76355107,133.46,133.43,7.49456643]
[1750542525075,0.73,133.48,133.42,7.49498237]
[1750542525454,25.76355107,133.46,133.42,7.49498237]
[1750542526161,25.76355107,133.47,133.42,7.49498237]
[1750542526378,26.86986625,133.51,133.42,33.95853344]
[1750542526570,51.76355107,133.49,133.44,25.76355107]
[1750542526769,51.76355107,133.49,133.44,26.46355107]
[1750542526975,51.76355107,133.49,133.44,0.7]
[1750542527291,26.0,133.48,133.44,0.7]
[1750542527592,51.76355107,133.48,133.44,0.7]
[1750542527793,0.73,133.51,133.43,25.76355107]
[1750542527967,25.76355107,133.49,133.43,0.7]
[1750542528290,51.76355107,133.49,133.45,7.49344323]
[1750542530175,25.76355107,133.49,133.45,7.49344323]
[1750542531111,25.76355107,133.49,133.45,8.19344323]
[1750542531611,25.76355107,133.48,133.43,25.76355107]
[1750542531967,25.76355107,133.48,133.43,26.46355107]
[1750542533077,25.76355107,133.48,133.44,7.49400479]
[1750542533277,25.76355107,133.47,133.44,7.49400479]
[1750542534469,7.49068797,133.5,133.44,7.49400479]
[1750542534676,25.76355107,133.47,133.44,7.49400479]
[1750542535497,25.76355107,133.45,133.42,7.49512816]
[1750542535699,34.22176665,133.48,133.41,12.6956]
[1750542535700,25.76355107,133.44,133.41,20.19113592]
[1750542535893,0.73,133.47,133.41,20.19113592]
[1750542536079,25.76355107,133.45,133.41,20.19113592]
[1750542536897,25.76355107,133.45,133.41,20.89113592]
[1750542537598,0.73,133.47,133.41,20.19113592]
[1750542537986,25.76355107,133.46,133.41,46.65468699]
[1750542538897,25.76355107,133.45,133.41,20.89113592]
[1750542539283,25.76355107,133.46,133.41,46.65468699]
[1750542539693,26.0,133.48,133.41,46.65468699]
[1750542539896,8.22079997,133.5,133.42,0.7]
[1750542540096,25.76355107,133.48,133.42,0.7]
[1750542540286,25.76355107,133.48,133.43,26.46355107]
[1750542540490,25.76355107,133.48,133.43,0.7]
[1750542540694,8.22079997,133.5,133.43,26.46355107]
[1750542540893,25.76355107,133.48,133.44,7.49400479]
[1750542541712,25.76355107,133.48,133.44,8.19400479]
[1750542542221,0.73,133.5,133.44,8.19400479]
[1750542542393,25.76355107,133.49,133.44,8.19400479]
[1750542543725,25.76355107,133.48,133.44,8.19400479]
[1750542543908,26.87042011,133.5,133.44,7.49400479]
[1750542544219,25.76355107,133.47,133.44,7.49400479]
[1750542544428,25.76355107,133.48,133.44,7.49400479]
[1750542544629,26.49355107,133.48,133.44,7.49400479]
[1750542544794,15.45352689,133.47,133.43,7.49456643]
[1750542545422,0.73,133.48,133.43,7.49456643]
[1750542545623,15.45352689,133.47,133.43,7.49456643]
[1750542546898,16.18352689,133.47,133.42,7.49512816]
[1750542547099,16.18352689,133.47,133.42,8.19512816]
[1750542547293,16.18352689,133.47,133.42,23.64865505]
[1750542547889,15.45352689,133.47,133.42,23.64865505]
[1750542548330,15.45352689,133.48,133.42,23.64865505]
[1750542549024,15.8822,133.55,133.46,15.45352689]
[1750542549322,15.45352689,133.52,133.47,15.45352689]
[1750542549487,15.45352689,133.52,133.47,16.15352689]
[1750542549691,15.45352689,133.52,133.47,0.7]
[1750542549889,15.45352689,133.52,133.47,16.15352689]
[1750542550121,15.45352689,133.52,133.48,7.49175906]
[1750542550622,41.45352689,133.54,133.48,35.94728595]
[1750542551405,15.45352689,133.55,133.49,15.45352689]
[1750542551814,41.45352689,133.55,133.49,0.71]
[1750542552008,41.45352689,133.55,133.49,16.16352689]
[1750542552212,15.45352689,133.55,133.51,0.71]
[1750542552420,15.45352689,133.56,133.51,16.16352689]
[1750542552636,26.0,133.56,133.51,16.16352689]
[1750542552810,15.45352689,133.57,133.51,16.16352689]
[1750542553835,15.45352689,133.57,133.52,15.45352689]
[1750542554042,15.45352689,133.57,133.53,7.48895379]
[1750542554926,15.45352689,133.57,133.52,23.65289652]
[1750542555218,8.16634884,133.58,133.52,23.65289652]
[1750542555219,26.0,133.58,133.52,23.65289652]
[1750542555421,26.135354,133.59,133.53,0.71]
[1750542555422,15.45352689,133.57,133.53,0.71]
[1750542555601,41.45352689,133.59,133.55,0.71]
[1750542556003,41.45352689,133.59,133.56,7.48727163]
[1750542556205,15.45352689,133.6,133.56,7.48727163]
[1750542556432,3.259,133.64,133.56,7.48727163]
[1750542556433,15.45352689,133.62,133.56,22.94079852]
[1750542556728,26.0,133.61,133.56,22.94079852]
[1750542556936,15.45352689,133.62,133.57,15.45352689]
[1750542557308,41.45352689,133.62,133.57,15.45352689]
[1750542557530,41.45352689,133.62,133.56,23.65079852]
[1750542558366,15.45352689,133.63,133.57,15.45352689]
[1750542558645,15.45352689,133.63,133.57,16.16352689]
[1750542559022,15.45352689,133.63,133.58,15.45352689]
[1750542559360,15.45352689,133.63,133.58,16.16352689]
[1750542559655,41.45352689,133.64,133.58,16.16352689]
[1750542559952,41.45352689,133.64,133.59,7.48559023]
[1750542560121,0.68,133.66,133.59,8.19559023]
[1750542560325,18.69553488,133.73,133.61,4.0501]
[1750542560528,3.2015,133.74,133.66,0.71]
[1750542560529,15.45352689,133.7,133.66,0.71]
[1750542560727,15.45352689,133.71,133.66,0.71]
[1750542561045,13.1529,133.75,133.62,3.83736474]
[1750542561046,15.45352689,133.75,133.7,16.16352689]
[1750542561248,15.45352689,133.78,133.72,15.45352689]
[1750542561430,15.45352689,133.78,133.69,3.3401]
[1750542561431,15.45352689,133.78,133.74,0.71]
[1750542561620,15.45352689,133.78,133.74,13.3036]
[1750542561824,7.47340964,133.81,133.74,20.78024313]
[1750542562129,26.0,133.78,133.74,20.78024313]
[1750542562333,15.45352689,133.77,133.74,20.78024313]
[1750542562637,15.45352689,133.78,133.74,20.78024313]
[1750542562854,25.63777246,133.78,133.74,20.78024313]
[1750542563025,25.63777246,133.79,133.74,20.78024313]
[1750542563546,7.4738485,133.8,133.74,20.78024313]
[1750542563730,25.63777246,133.79,133.74,20.78024313]
[1750542563926,7.4738485,133.8,133.74,12.5936]
[1750542563927,25.63777246,133.77,133.74,12.5936]
[1750542564133,7.4738485,133.8,133.74,12.5936]
[1750542564447,25.63777246,133.78,133.74,12.5936]
[1750542565124,25.63777246,133.77,133.74,12.5936]
[1750542565323,8.1538485,133.8,133.74,12.5936]
[1750542565324,7.4738485,133.8,133.74,12.5936]
[1750542565531,25.63777246,133.78,133.74,13.3036]
[1750542565729,25.63777246,133.79,133.74,12.5936]
[1750542566133,26.0,133.81,133.74,46.41843341]
[1750542566334,25.63777246,133.8,133.74,46.41843341]
[1750542566653,21.15007429,133.8,133.74,46.41843341]
[1750542566863,26.0,133.81,133.76,25.63777246]
[1750542567163,26.0,133.81,133.76,26.34777246]
[1750542567470,26.0,133.81,133.77,3.7699]
[1750542567768,26.0,133.81,133.78,0.71]
[1750542567942,26.0,133.81,133.78,8.18490329]
[1750542568145,25.63777246,133.83,133.78,7.47490329]
[1750542568456,26.12021861,133.86,133.79,0.71]
[1750542568457,25.63777246,133.84,133.79,0.71]
[1750542568642,26.12021861,133.86,133.79,26.34777246]
[1750542568971,51.63777246,133.85,133.79,26.34777246]
[1750542569154,10.0,133.93,133.82,52.34777246]
[1750542569155,8.72718493,133.89,133.82,52.34777246]
[1750542569334,0.68,133.91,133.84,25.63777246]
[1750542569655,25.63777246,133.9,133.84,25.63777246]
[1750542569841,25.63777246,133.88,133.83,25.63777246]
[1750542570041,25.63777246,133.89,133.84,7.47160789]
[1750542570352,18.64964886,133.9,133.84,7.47160789]
[1750542570553,0.68,133.95,133.85,0.71]
[1750542570936,7.46491489,133.96,133.85,0.71]
[1750542570937,25.63777246,133.91,133.85,26.34777246]
[1750542571160,25.63777246,133.91,133.84,7.47160789]
[1750542571161,26.68,133.93,133.84,7.47160789]
[1750542571340,25.63777246,133.89,133.84,8.18160789]
[1750542571550,25.63777246,133.9,133.84,33.81938035]
[1750542571739,25.63777246,133.89,133.84,33.81938035]
[1750542571934,0.68,133.91,133.84,7.47160789]
[1750542572135,25.63777246,133.89,133.84,7.47160789]
[1750542572340,51.63777246,133.9,133.84,33.10938035]
[1750542572543,51.63777246,133.9,133.84,7.47160789]
[1750542572777,26.0,133.9,133.84,33.10938035]
[1750542572951,51.63777246,133.9,133.84,33.10938035]
[1750542573146,26.0,133.9,133.84,7.47160789]
[1750542573357,26.0,133.9,133.84,33.10938035]
[1750542573358,51.63777246,133.9,133.84,33.10938035]
[1750542573557,25.63777246,133.89,133.84,33.10938035]
[1750542574064,25.63777246,133.89,133.84,7.47160789]
[1750542574373,26.0,133.9,133.84,7.47160789]
[1750542574565,25.63777246,133.89,133.84,7.47160789]
[1750542575269,0.68,133.88,133.84,7.47160789]
[1750542575471,25.63777246,133.87,133.84,7.47160789]
[1750542575859,25.63777246,133.87,133.82,33.81995218]
[1750542576047,25.63777246,133.87,133.82,8.18217972]
[1750542576571,25.63777246,133.84,133.81,12.5904]
[1750542576787,25.63777246,133.83,133.81,12.5904]
[1750542576942,18.64964886,133.85,133.81,12.5904]
[1750542577146,0.68,133.86,133.81,12.5904]
[1750542577147,45.32964886,133.86,133.81,12.5904]
[1750542577380,25.63777246,133.83,133.79,7.4742784]
[1750542577953,25.63777246,133.82,133.79,7.4742784]
[1750542578265,25.63777246,133.82,133.76,7.47607655]
[1750542578444,25.63777246,133.8,133.76,7.47607655]
[1750542578646,70.28742132,133.77,133.69,0.71]
[1750542578889,25.63777246,133.73,133.68,19.74273887]
[1750542579186,26.68,133.82,133.72,25.63777246]
[1750542579351,25.63777246,133.79,133.71,0.71]
[1750542579551,25.63777246,133.79,133.73,25.63777246]
[1750542579976,25.63777246,133.78,133.72,25.63777246]
[1750542580459,51.63777246,133.78,133.73,8.18775368]
[1750542581183,25.63777246,133.76,133.72,7.47829988]
[1750542581684,7.47216618,133.83,133.72,51.81185457]
[1750542581888,25.63777246,133.78,133.72,52.53185457]
[1750542582074,25.63777246,133.77,133.72,26.89408211]
[1750542582477,51.63777246,133.78,133.72,26.89408211]
[1750542582772,25.63777246,133.77,133.72,52.53185457]
[1750542582974,26.0,133.79,133.72,52.53185457]
[1750542583163,51.63777246,133.78,133.72,52.53185457]
[1750542583492,25.63777246,133.79,133.74,25.63777246]
[1750542583679,25.63777246,133.8,133.75,25.63777246]
[1750542583876,25.63777246,133.82,133.76,25.63777246]
[1750542584065,25.63777246,133.82,133.76,26.35777246]
[1750542584518,25.63777246,133.82,133.77,33.83329013]
[1750542584708,51.63777246,133.82,133.77,33.83329013]
[1750542585086,25.63777246,133.82,133.77,33.83329013]